Workbook

Sheet Overview
B1: Overview of the Aurora Energy CPP Model Suite
B2: An overview of the Aurora Energy CPP Model (the CPP Model Suite) is provided on this worksheet
B4: Overview
B6: Aurora Energy Limited (Aurora Energy) has identified a programme of work required to renew ageing infrastructure and to support accelerating residential and commercial development in the Queenstown Lakes District. Funding this expenditure is the purpose of the proposed CPP application.
B8: Over the forecast period, Aurora plans to make investments in the network to improve reliability and prepare for the future. The proposed expenditure has been developed to address six key aspects: safety, reliability, growth, resilience, future technology and customer service.
B10: Under the proposed plan, Aurora Energy would invest in replacing and upgrading ageing equipment on the network. Major areas of spend would be on poles, cross arms, overhead lines and underground cables, protection systems and zone substation transformers.
B12: The purpose of this workbook (the CPP Financial Model) is to calculate Aurora Energy's proposed maximum allowable revenue (MAR) for RY22 - RY26 (ie a five year CPP). The model also includes functionality to calculate MAR for RY22 - RY24 (ie a three year CPP).
B14: This published model is a non-functional version. The macro that it currently has for solving the BBAR to the MAR in the MARx sheet has been disabled due to the sheet protection that has been applied to this file. The model is intended to show the calculation methodology.
B16: Figure 1 provides an illustrative overview of the CPP Model Suite.
B18: Figure 1: Aurora Energy CPP Model Suite
B44: Structure of this model > CPP Financial Model
B46: Figure 2 provides an illustrative overview of the structure of the CPP Financial Model.
B48: Figure 2: Model structure
B88: Calculations
B90: The CPP Financial Model is used to calculate the BBAR and the MAR for the CPP regulatory period. The CPP Model is based on the final model for Powerco's CPP for 2018-2023, updated to reflect changes in the Input Methodologies since 2018, including the treatment of operating leases.
B92: Goal seek
B93: Note that there is a goal seek on the 'MARx' sheet which calculates the starting MAR before tax (in RY22) such that the NPV of BBAR after tax including Clawback during the CPP regulatory period is equal to the NPV of MAR after tax including Clawback during the CPP regulatory period. To run the goal seek, click the button at the top of the 'MARx' sheet.
B95: Inputs
B97: Input model | C97: Description
B98: 2. Supporting Model - Other | C98: All inputs are sourced from the 'Supporting Model - Other' workbook. Further detail on the sources of inputs is provided in that workbook.
B100: Definitions
B102: Term | C102: Definition
B103: CPP Model Suite | C103: Refers to the suite of workbooks used to calculate the BBAR and MAR for the CPP regulatory period. The CPP Model Suite consists of three models (described below): - CPP Financial Model - Supporting Model - Other - Supporting Model - Expenditure.
B104: CPP Financial Model | C104: The CPP Financial Model is used to calculate the BBAR and the MAR for the CPP regulatory period.
B105: Supporting Model - Other | C105: The 'Supporting Model - Other' workbook is used to calculate inputs for the CPP Financial Model, including: - RAB, RTAV + deferred tax roll forwards - Regulatory tax calculations - Cost of capital.
B106: Supporting Model - Expenditure | C106: The 'Supporting Model - Expenditure' workbook takes historical and forecast capital and operating expenditure by project and re-organises the data into CPP expenditure and asset categories for asset roll forwards, price path calculations and various output tables for the CPP proposal. The workbook also includes the Schedule E tables.
B108: Shading
B110: Colour | C110: Interpretation
C111: Identifies input cells (ie where values are sourced from another workbook within the CPP Model Suite or from an external source)

Sheet Change log
A1: Changes made to Main CPP Model, relative to the Powerco version
A3: We have made labelling and structural changes to the model submitted alongside PowerCo's CPP proposal in order to be IM compliant. A list of these changes with the relevant reference can be seen below
A5: Sheet Name | B5: Description
A6: General | B6: Removed controllable opex from input and outputs sheets to become IM compliant
A7: General | B7: Changed the labelling from 'fully depreciated assets' to 'assets with a remaining life of nil'. This allows the inclusion of land so it is not revalued. (Cell 79B)
A8: General | B8: Additional line item has been added (Opening deferred tax related to ROU commissioned assets)
A9: RABx | B9: Changed the labelling from 'fully depreciated assets' to 'assets with a remaining life of nil'. This allows the inclusion of land so it is not revalued (Cell 42B)
A10: TAXx | B10: Changed the labelling from "Adjusted regulatory taxable income (nil if <0)" to "Regulatory net taxable income", as per IM 5.3.13(1) (Cell B15)
A11: TAXx | B11: Linked the regulatory taxable income losses to "Regulatory taxable income" in row 24. Previously the formula was linking to Regulatory profit/loss (before tax) in row 31 (Row 36)
A12: TAXx | B12: Linked the utilised tax losses to "Regulatory taxable income" in row 24. Previously the formula was linking to Regulatory profit/loss (before tax) in row 31 (Row 37)
A13: DTAx | B13: Additional line item has been added (deferred tax related to ROU commissioned assets). This increases deferred tax.

Sheet Inputs >
B2: This sheet has been deliberately left blank.

Sheet General
B2: =MID(CELL("filename",B2),FIND("]",CELL("filename",B2))+1,255) -> General | C2: =MARx!C2 -> Model: Ok
B3: Period beginning | H3: 2019-04-01 | I3: 2020-04-01 | J3: 2021-04-01 | K3: 2022-04-01 | L3: 2023-04-01 | M3: 2024-04-01 | N3: 2025-04-01
B4: Period ending | H4: 2020-03-31 | I4: 2021-03-31 | J4: 2022-03-31 | K4: 2023-03-31 | L4: 2024-03-31 | M4: 2025-03-31 | N4: 2026-03-31
B5: Regulatory year | H5: ="RY"&RIGHT(YEAR(H4),2) -> RY20 | I5: ="RY"&RIGHT(YEAR(I4),2) -> RY21 | J5: RY22 | K5: RY23 | L5: RY24 | M5: RY25 | N5: RY26
B6: Relevant period | H6: Assessment period | J6: CPP period
B9: CPP Inputs Module | C9: Units | D9: Value | E9: IM reference
B11: CPP regulatory period | C11: Year | D11: 5
B13: X factor | C13: % | D13: 0.05 | E13: IM 5.4.8 (2)-(4)
B15: Cost of capital | C15: % | E15: IM 5.3.22 (1) | H15: ='[1]CPP Financial Model'!M11 -> 0.0719 | I15: ='[1]CPP Financial Model'!N11 -> 0.0457 | J15: ='[1]CPP Financial Model'!O11 -> 0.0457 | K15: ='[1]CPP Financial Model'!P11 -> 0.0457 | L15: ='[1]CPP Financial Model'!Q11 -> 0.0457 | M15: ='[1]CPP Financial Model'!R11 -> 0.0457 | N15: ='[1]CPP Financial Model'!S11 -> 0.0457
B17: Inflation rate | C17: % | E17: IM 5.3.4 (9) | J17: ='[1]CPP Financial Model'!O13 -> 0.01950211459 | K17: ='[1]CPP Financial Model'!P13 -> 0.02024805898 | L17: ='[1]CPP Financial Model'!Q13 -> 0.02 | M17: ='[1]CPP Financial Model'!R13 -> 0.02 | N17: ='[1]CPP Financial Model'!S13 -> 0.02
B19: Claw-back | C19: Nominal $ | D19: 0 | E19: IM 5.3.4 (2)
B21: Term Credit Spread Differential Allowance | C21: Nominal $ | E21: IM 5.3.23 (1) | H21: ='[1]CPP Financial Model'!M15 -> 0 | I21: ='[1]CPP Financial Model'!N15 -> 0 | J21: ='[1]CPP Financial Model'!O15 -> 0 | K21: ='[1]CPP Financial Model'!P15 -> 0 | L21: ='[1]CPP Financial Model'!Q15 -> 0 | M21: ='[1]CPP Financial Model'!R15 -> 0 | N21: ='[1]CPP Financial Model'!S15 -> 0
B23: TF | C23: #.## | E23: IM 5.3.2 (4)(a) | H23: ='[1]CPP Financial Model'!M17 -> 1.035227567 | I23: ='[1]CPP Financial Model'!N17 -> 1.022532143 | J23: ='[1]CPP Financial Model'!O17 -> 1.022532143 | K23: ='[1]CPP Financial Model'!P17 -> 1.022532143 | L23: ='[1]CPP Financial Model'!Q17 -> 1.022532143 | M23: ='[1]CPP Financial Model'!R17 -> 1.022532143 | N23: ='[1]CPP Financial Model'!S17 -> 1.022532143
B25: TFrev | C25: #.## | E25: IM 5.3.2 (4)(b) | H25: ='[1]CPP Financial Model'!M19 -> 1.028553621 | I25: ='[1]CPP Financial Model'!N19 -> 1.018284618 | J25: ='[1]CPP Financial Model'!O19 -> 1.018284618 | K25: ='[1]CPP Financial Model'!P19 -> 1.018284618 | L25: ='[1]CPP Financial Model'!Q19 -> 1.018284618 | M25: ='[1]CPP Financial Model'!R19 -> 1.018284618 | N25: ='[1]CPP Financial Model'!S19 -> 1.018284618
B27: Forecast operating expenditure | C27: Nominal $ | E27: IM 5.3.2 (6) | H27: ='[1]CPP Financial Model'!M21 -> 47238671.1 | I27: ='[1]CPP Financial Model'!N21 -> 48545458.55 | J27: ='[1]CPP Financial Model'!O21 -> 43031425.23 | K27: ='[1]CPP Financial Model'!P21 -> 45282611.44 | L27: ='[1]CPP Financial Model'!Q21 -> 42870976.24 | M27: ='[1]CPP Financial Model'!R21 -> 41788917.97 | N27: ='[1]CPP Financial Model'!S21 -> 41952604.68
B29: Corporate tax rate | C29: % | E29: IM 1.1.4 (2) | H29: ='[1]CPP Financial Model'!M23 -> 0.28 | I29: ='[1]CPP Financial Model'!N23 -> 0.28 | J29: ='[1]CPP Financial Model'!O23 -> 0.28 | K29: ='[1]CPP Financial Model'!P23 -> 0.28 | L29: ='[1]CPP Financial Model'!Q23 -> 0.28 | M29: ='[1]CPP Financial Model'!R23 -> 0.28 | N29: ='[1]CPP Financial Model'!S23 -> 0.28
B31: Opening tax losses in the first year of the next period | C31: Nominal $ | E31: IM 5.3.14 (3)(a) | H31: ='[1]CPP Financial Model'!$M$25 -> 0
B33: Positive permanent differences | C33: Nominal $ | E33: IM 5.3.15 (2) | H33: ='[1]CPP Financial Model'!M27 -> 15882.00983 | I33: ='[1]CPP Financial Model'!N27 -> 16202.68885 | J33: ='[1]CPP Financial Model'!O27 -> 16515.75395 | K33: ='[1]CPP Financial Model'!P27 -> 16845.09251 | L33: ='[1]CPP Financial Model'!Q27 -> 17180.99836 | M33: ='[1]CPP Financial Model'!R27 -> 17524.61833 | N33: ='[1]CPP Financial Model'!S27 -> 17875.1107
B35: Discretionary discounts and customer rebates | C35: Nominal $ | E35: IM 2.3.3 (6) | H35: ='[1]CPP Financial Model'!M29 -> 0 | I35: ='[1]CPP Financial Model'!N29 -> 0 | J35: ='[1]CPP Financial Model'!O29 -> 0 | K35: ='[1]CPP Financial Model'!P29 -> 0 | L35: ='[1]CPP Financial Model'!Q29 -> 0 | M35: ='[1]CPP Financial Model'!R29 -> 0 | N35: ='[1]CPP Financial Model'!S29 -> 0
B37: Negative permanent differences | C37: Nominal $ | E37: IM 5.3.15 (4) | H37: ='[1]CPP Financial Model'!M31 -> 1525499.113 | I37: ='[1]CPP Financial Model'!N31 -> 1194217.829 | J37: ='[1]CPP Financial Model'!O31 -> 1147801.463 | K37: ='[1]CPP Financial Model'!P31 -> 1104235.743 | L37: ='[1]CPP Financial Model'!Q31 -> 835827.4542 | M37: ='[1]CPP Financial Model'!R31 -> 504987.6581 | N37: ='[1]CPP Financial Model'!S31 -> 477165.121
B39: Leverage | C39: % | E39: IM 2.4.2 (1) | H39: ='[1]CPP Financial Model'!M$33 -> 0.44 | I39: ='[1]CPP Financial Model'!N$33 -> 0.42 | J39: ='[1]CPP Financial Model'!O$33 -> 0.42 | K39: ='[1]CPP Financial Model'!P$33 -> 0.42 | L39: ='[1]CPP Financial Model'!Q$33 -> 0.42 | M39: ='[1]CPP Financial Model'!R$33 -> 0.42 | N39: ='[1]CPP Financial Model'!S$33 -> 0.42
B41: Cost of debt | C41: % | E41: IM 2.4.1 (3) | H41: ='[1]CPP Financial Model'!M35 -> 0.0609 | I41: ='[1]CPP Financial Model'!N35 -> 0.0292 | J41: ='[1]CPP Financial Model'!O35 -> 0.0292 | K41: ='[1]CPP Financial Model'!P35 -> 0.0292 | L41: ='[1]CPP Financial Model'!Q35 -> 0.0292 | M41: ='[1]CPP Financial Model'!R35 -> 0.0292 | N41: ='[1]CPP Financial Model'!S35 -> 0.0292
B43: Opening unamortised initial differences in asset values for most recent ID year | C43: Nominal $ | E43: IM 5.3.17 (2) | H43: ='[1]CPP Financial Model'!$M$37 -> 89221047.59
B45: Adjustment to opening unamortised initial differences in asset values for sold or acquired assets | C45: Nominal $ | E45: IM 5.3.17 (5) | H45: ='[1]CPP Financial Model'!M39 -> -152842.538 | I45: ='[1]CPP Financial Model'!N39 -> -121627.5098 | J45: ='[1]CPP Financial Model'!O39 -> -94134.87536 | K45: ='[1]CPP Financial Model'!P39 -> -71040.71639 | L45: ='[1]CPP Financial Model'!Q39 -> -56389.0307 | M45: ='[1]CPP Financial Model'!R39 -> -52832.72976 | N45: ='[1]CPP Financial Model'!S39 -> -50021.7983
B47: Weighted average remaining useful life of relevant assets | C47: #.## | E47: IM 5.3.17 (4) | H47: ='[1]CPP Financial Model'!M41 -> 17.91 | I47: ='[1]CPP Financial Model'!N41 -> 16.91 | J47: ='[1]CPP Financial Model'!O41 -> 15.91 | K47: ='[1]CPP Financial Model'!P41 -> 14.91 | L47: ='[1]CPP Financial Model'!Q41 -> 13.91 | M47: ='[1]CPP Financial Model'!R41 -> 12.91 | N47: ='[1]CPP Financial Model'!S41 -> 11.91
B49: Opening deferred tax for most recent ID year (pre ROU adj) | C49: Nominal $ | E49: IM 5.3.19 (1) | H49: ='[1]CPP Financial Model'!$M$43 -> -20258920.48
B51: Tax depreciation | C51: Nominal $ | E51: IM 5.3.20 (3) | H51: ='[1]CPP Financial Model'!M45 -> 25113817.56 | I51: ='[1]CPP Financial Model'!N45 -> 29430406.51 | J51: ='[1]CPP Financial Model'!O45 -> 34915900.16 | K51: ='[1]CPP Financial Model'!P45 -> 38620260.82 | L51: ='[1]CPP Financial Model'!Q45 -> 40218097.17 | M51: ='[1]CPP Financial Model'!R45 -> 42288869.5 | N51: ='[1]CPP Financial Model'!S45 -> 44492799.64
B53: Positive temporary differences | C53: Nominal $ | E53: IM 5.3.20 (4) | H53: ='[1]CPP Financial Model'!M47 -> 4816024.229 | I53: ='[1]CPP Financial Model'!N47 -> 5055141.902 | J53: ='[1]CPP Financial Model'!O47 -> 5220917.674 | K53: ='[1]CPP Financial Model'!P47 -> 5479634.015 | L53: ='[1]CPP Financial Model'!Q47 -> 5814183.703 | M53: ='[1]CPP Financial Model'!R47 -> 6226831.183 | N53: ='[1]CPP Financial Model'!S47 -> 6621510.545
B55: Negative temporary differences | C55: Nominal $ | E55: IM 5.3.20 (5) | H55: ='[1]CPP Financial Model'!M49 -> 0 | I55: ='[1]CPP Financial Model'!N49 -> 0 | J55: ='[1]CPP Financial Model'!O49 -> 0 | K55: ='[1]CPP Financial Model'!P49 -> 0 | L55: ='[1]CPP Financial Model'!Q49 -> 0 | M55: ='[1]CPP Financial Model'!R49 -> 0 | N55: ='[1]CPP Financial Model'!S49 -> 0
B57: Deferred tax balance relating to assets acquired in disclosure year | C57: Nominal $ | E57: IM 5.3.19 (3) | H57: ='[1]CPP Financial Model'!M51 -> 0 | I57: ='[1]CPP Financial Model'!N51 -> 0 | J57: ='[1]CPP Financial Model'!O51 -> 0 | K57: ='[1]CPP Financial Model'!P51 -> 0 | L57: ='[1]CPP Financial Model'!Q51 -> 0 | M57: ='[1]CPP Financial Model'!R51 -> 0 | N57: ='[1]CPP Financial Model'!S51 -> 0
B59: Cost allocation adjustment | C59: Nominal $ | E59: IM 5.3.19 (5) | H59: ='[1]CPP Financial Model'!M53 -> 0 | I59: ='[1]CPP Financial Model'!N53 -> 0 | J59: ='[1]CPP Financial Model'!O53 -> 0 | K59: ='[1]CPP Financial Model'!P53 -> 0 | L59: ='[1]CPP Financial Model'!Q53 -> 0 | M59: ='[1]CPP Financial Model'!R53 -> 0 | N59: ='[1]CPP Financial Model'!S53 -> 0
B61: Opening deferred tax related to ROU commissioned assets | C61: Nominal $ | E61: IM 5.3.19 (1)(c) | H61: ='[1]CPP Financial Model'!M$55 -> -1377971.572 | I61: ='[1]CPP Financial Model'!N$55 -> -40763.93112 | J61: ='[1]CPP Financial Model'!O$55 -> -133503.2301 | K61: ='[1]CPP Financial Model'!P$55 -> -74792.42346 | L61: ='[1]CPP Financial Model'!Q$55 -> -138596.4659 | M61: ='[1]CPP Financial Model'!R$55 -> -38178.83836 | N61: ='[1]CPP Financial Model'!S$55 -> 0
B63: Opening or closing RAB values for ID years | C63: Nominal $ | E63: IM 5.3.6 (1) | H63: ='[1]CPP Financial Model'!M57 -> 447072181.5
B65: Disposals | C65: Nominal $ | E65: IM 5.3.6 (3)(c) | H65: ='[1]CPP Financial Model'!M59 -> 765869.139 | I65: ='[1]CPP Financial Model'!N59 -> 678520.6526 | J65: ='[1]CPP Financial Model'!O59 -> 590091.0657 | K65: ='[1]CPP Financial Model'!P59 -> 499892.887 | L65: ='[1]CPP Financial Model'!Q59 -> 432548.3808 | M65: ='[1]CPP Financial Model'!R59 -> 441199.3484 | N65: ='[1]CPP Financial Model'!S59 -> 450023.3354
B67: Total value of commissioned assets | C67: Nominal $ | E67: IM 5.3.11 | H67: ='[1]CPP Financial Model'!M61 -> 60692968.2 | I67: ='[1]CPP Financial Model'!N61 -> 71595985.12 | J67: ='[1]CPP Financial Model'!O61 -> 78674335.55 | K67: ='[1]CPP Financial Model'!P61 -> 67520351.07 | L67: ='[1]CPP Financial Model'!Q61 -> 72186819.59 | M67: ='[1]CPP Financial Model'!R61 -> 69938140.5 | N67: ='[1]CPP Financial Model'!S61 -> 65667779.56
B69: PVVCA | C69: Nominal $ | E69: IM 5.3.2 (4)(d) | H69: ='[1]CPP Financial Model'!M63 -> 58616506.95 | I69: ='[1]CPP Financial Model'!N63 -> 70009750.52 | J69: ='[1]CPP Financial Model'!O63 -> 76931277.57 | K69: ='[1]CPP Financial Model'!P63 -> 66024413.59 | L69: ='[1]CPP Financial Model'!Q63 -> 70587494.84 | M69: ='[1]CPP Financial Model'!R63 -> 68388636.04 | N69: ='[1]CPP Financial Model'!S63 -> 64212886.46
B71: Revaluation rate | C71: % | E71: IM 5.3.10 (4) | H71: ='[1]CPP Financial Model'!M65 -> 0.017 | I71: ='[1]CPP Financial Model'!N65 -> 0.019 | J71: ='[1]CPP Financial Model'!O65 -> 0.02 | K71: ='[1]CPP Financial Model'!P65 -> 0.02 | L71: ='[1]CPP Financial Model'!Q65 -> 0.02 | M71: ='[1]CPP Financial Model'!R65 -> 0.02 | N71: ='[1]CPP Financial Model'!S65 -> 0.02
B73: Remaining asset lives | C73: #.## | E73: IM 5.3.7 (4) | H73: ='[1]CPP Financial Model'!M67 -> 26.56212962 | I73: ='[1]CPP Financial Model'!N67 -> 26.4944269 | J73: ='[1]CPP Financial Model'!O67 -> 27.01980775 | K73: ='[1]CPP Financial Model'!P67 -> 27.33431451 | L73: ='[1]CPP Financial Model'!Q67 -> 27.67188858 | M73: ='[1]CPP Financial Model'!R67 -> 27.84458198 | N73: ='[1]CPP Financial Model'!S67 -> 27.94305793
B75: Opening or closing RAB values for ID years without revaluations | C75: Nominal $ | E75: IM 5.3.6 (1) | H75: ='[1]CPP Financial Model'!M69 -> 410128234.4
B77: RAB proportionate investment | C77: Nominal $ | E77: IM 5.3.16 (3) | H77: ='[1]CPP Financial Model'!M71 -> 30045641.45 | I77: ='[1]CPP Financial Model'!N71 -> 35555879.45 | J77: ='[1]CPP Financial Model'!O71 -> 39149086.96 | K77: ='[1]CPP Financial Model'!P71 -> 33602037.94 | L77: ='[1]CPP Financial Model'!Q71 -> 35975429.13 | M77: ='[1]CPP Financial Model'!R71 -> 34843671.87 | N77: ='[1]CPP Financial Model'!S71 -> 32698217.5
B79: Disposals without revaluations | C79: Nominal $ | E79: IM 5.3.6 (3)(c) | H79: ='[1]CPP Financial Model'!M73 -> 714865 | I79: ='[1]CPP Financial Model'!N73 -> 614865 | J79: ='[1]CPP Financial Model'!O73 -> 514865 | K79: ='[1]CPP Financial Model'!P73 -> 414865 | L79: ='[1]CPP Financial Model'!Q73 -> 400000 | M79: ='[1]CPP Financial Model'!R73 -> 400000 | N79: ='[1]CPP Financial Model'!S73 -> 400000
B81: Assets with a remaning life of nil | C81: Nominal $ | H81: ='[1]CPP Financial Model'!M75 -> 1167611.44 | I81: ='[1]CPP Financial Model'!N75 -> 1167611.44 | J81: ='[1]CPP Financial Model'!O75 -> 1240286.271 | K81: ='[1]CPP Financial Model'!P75 -> 1267272.676 | L81: ='[1]CPP Financial Model'!Q75 -> 1167611.44 | M81: ='[1]CPP Financial Model'!R75 -> 1184441.246 | N81: ='[1]CPP Financial Model'!S75 -> 1328397.748
B83: Weighted average remaining life of assets based on RAB excluding revaluations | C83: #.## | E83: IM 5.3.7 (4) | H83: ='[1]CPP Financial Model'!M77 -> 27.03234815 | I83: ='[1]CPP Financial Model'!N77 -> 27.03174208 | J83: ='[1]CPP Financial Model'!O77 -> 27.71287265 | K83: ='[1]CPP Financial Model'!P77 -> 28.1417754 | L83: ='[1]CPP Financial Model'!Q77 -> 28.62470605 | M83: ='[1]CPP Financial Model'!R77 -> 28.94151496 | N83: ='[1]CPP Financial Model'!S77 -> 29.17556644
B85: Deferred tax balance relating to assets disposed of in disclosure year | C85: Nominal $ | E85: IM 5.3.19 (6) | H85: ='[1]CPP Financial Model'!M79 -> -34705.09379 | I85: ='[1]CPP Financial Model'!N79 -> -27617.27323 | J85: ='[1]CPP Financial Model'!O79 -> -21374.67566 | K85: ='[1]CPP Financial Model'!P79 -> -16130.81513 | L85: ='[1]CPP Financial Model'!Q79 -> -12803.93943 | M85: ='[1]CPP Financial Model'!R79 -> -11996.43022 | N85: ='[1]CPP Financial Model'!S79 -> -11358.16785

Sheet Calculations >
B2: This sheet has been deliberately left blank.

Sheet RABx
B2: =MID(CELL("filename",B2),FIND("]",CELL("filename",B2))+1,255) -> RABx | C2: =MARx!C2 -> Model: Ok
B3: Period beginning | H3: 2019-04-01 | I3: 2020-04-01 | J3: 2021-04-01 | K3: 2022-04-01 | L3: 2023-04-01 | M3: 2024-04-01 | N3: 2025-04-01
B4: Period ending | H4: 2020-03-31 | I4: 2021-03-31 | J4: 2022-03-31 | K4: 2023-03-31 | L4: 2024-03-31 | M4: 2025-03-31 | N4: 2026-03-31
B5: Regulatory year | H5: ="RY"&RIGHT(YEAR(H4),2) -> RY20 | I5: ="RY"&RIGHT(YEAR(I4),2) -> RY21 | J5: RY22 | K5: RY23 | L5: RY24 | M5: RY25 | N5: RY26
B6: Relevant period | H6: Assessment period | J6: CPP period
B9: Regulatory Asset Base (RAB) Module | C9: Units | D9: Value | E9: IM reference
B11: Total Opening RAB value
B13: Opening RAB value | C13: Nominal $ | E13: IM 5.3.6 (7)(b) | H13: =IF(H$5=General!$H$5,General!H$63,G18) -> 447072181.5 | I13: =IF(I$5=General!$H$5,General!I$63,H18) -> 497735451.1 | J13: =IF(J$5=General!$H$5,General!J$63,I18) -> 559288391.9 | K13: =IF(K$5=General!$H$5,General!K$63,J18) -> 627822597.1 | L13: =IF(L$5=General!$H$5,General!L$63,K18) -> 684395869 | M13: =IF(M$5=General!$H$5,General!M$63,L18) -> 745073522.4 | N13: =IF(N$5=General!$H$5,General!N$63,M18) -> 802681126.8
B14: less Depreciation | C14: Nominal $ | E14: IM 5.3.7 (2) | H14: =H52 -> 16831187.4 | I14: 18786420.74 | J14: 20699199.53 | K14: 22968294.92 | L14: 24732531.97 | M14: 26758294.41 | N14: 28725600.79
B15: less Disposals | C15: Nominal $ | E15: IM 5.3.6 (3)(c) | H15: =General!H$65 -> 765869.139 | I15: =General!I$65 -> 678520.6526 | J15: =General!J$65 -> 590091.0657 | K15: =General!K$65 -> 499892.887 | L15: =General!L$65 -> 432548.3808 | M15: =General!M$65 -> 441199.3484 | N15: =General!N$65 -> 450023.3354
B16: add Revaluation | C16: Nominal $ | E16: IM 5.3.10 (2) | H16: =H46 -> 7567357.916 | I16: 9421897.061 | J16: 11149160.29 | K16: 12521108.63 | L16: 13655914.18 | M16: 14868957.64 | N16: 16018054.11
B17: add Total value of commissioned assets | C17: Nominal $ | E17: IM 5.3.11 | H17: =General!H$67 -> 60692968.2 | I17: =General!I$67 -> 71595985.12 | J17: =General!J$67 -> 78674335.55 | K17: =General!K$67 -> 67520351.07 | L17: =General!L$67 -> 72186819.59 | M17: =General!M$67 -> 69938140.5 | N17: =General!N$67 -> 65667779.56
B18: Closing RAB value | C18: Nominal $ | E18: IM 5.3.6 (8) | H18: =H13-H14-H15+H16+H17 -> 497735451.1 | I18: =I13-I14-I15+I16+I17 -> 559288391.9 | J18: 627822597.1 | K18: 684395869 | L18: 745073522.4 | M18: 802681126.8 | N18: 855191336.4
B20: RAB roll-forward without revaluations
B22: Opening RAB value without revaluations | C22: Nominal $ | H22: =H56 -> 410128234.4 | I22: 454934580 | J22: 509086056.7 | K22: 568875506.1 | L22: 615766364.7 | M22: 666041474.7 | N22: 712566256.1
B23: less Adjusted depreciation | C23: Nominal $ | H23: =H66 -> 15171757.64 | I23: 16829643.41 | J23: 18370021.15 | K23: 20214627.48 | L23: 21511709.62 | M23: 23013359.03 | N23: 24423390.63
B24: less Disposals without revaluations | C24: Nominal $ | H24: =H58 -> 714865 | I24: 614865 | J24: 514865 | K24: 414865 | L24: 400000 | M24: 400000 | N24: 400000
B25: add Total value of commissioned assets | C25: Nominal $ | H25: 60692968.2 | I25: 71595985.12 | J25: 78674335.55 | K25: 67520351.07 | L25: 72186819.59 | M25: 69938140.5 | N25: 65667779.56
B26: Closing RAB value without revaluations | C26: Nominal $ | H26: =H22-H23-H24+H25 -> 454934580 | I26: =I22-I23-I24+I25 -> 509086056.7 | J26: 568875506.1 | K26: 615766364.7 | L26: 666041474.7 | M26: 712566256.1 | N26: 753410645.1
H27: =H60-H26 -> 0 | I27: =I60+0-I26 -> 0 | J27: 0 | K27: 0 | L27: 0 | M27: 0 | N27: 0
B28: TFVCA
B30: PVVCA | C30: Nominal $ | E30: IM 5.3.2 (4)(d) | H30: =General!H69 -> 58616506.95 | I30: =General!I69 -> 70009750.52 | J30: =General!J69 -> 76931277.57 | K30: =General!K69 -> 66024413.59 | L30: =General!L69 -> 70587494.84 | M30: =General!M69 -> 68388636.04 | N30: =General!N69 -> 64212886.46
B31: multiply by (1 + Cost of capital) | C31: #.## | H31: =1+General!H15 -> 1.0719 | I31: =1+General!I15 -> 1.0457 | J31: =1+General!J15 -> 1.0457 | K31: =1+General!K15 -> 1.0457 | L31: =1+General!L15 -> 1.0457 | M31: =1+General!M15 -> 1.0457 | N31: =1+General!N15 -> 1.0457
B32: divide by Total value of commissioned assets | C32: Nominal $ | H32: =H17 -> 60692968.2 | I32: 71595985.12 | J32: 78674335.55 | K32: 67520351.07 | L32: 72186819.59 | M32: 69938140.5 | N32: 65667779.56
B33: TFVCA | C33: #.## | E33: IM 5.3.2 (4)(c) | H33: =H30*H31/H32 -> 1.035227567 | I33: =I30*I31/I32 -> 1.022532143 | J33: 1.022532143 | K33: 1.022532143 | L33: 1.022532143 | M33: 1.022532143 | N33: 1.022532143
B35: RAB proportionate investment
B37: RAB proportionate investment | C37: Nominal $ | E37: IM 5.3.16 (3) | H37: =General!H77 -> 30045641.45 | I37: =General!I77 -> 35555879.45 | J37: =General!J77 -> 39149086.96 | K37: =General!K77 -> 33602037.94 | L37: =General!L77 -> 35975429.13 | M37: =General!M77 -> 34843671.87 | N37: =General!N77 -> 32698217.5
B39: Total revaluation
B41: Opening RAB value | C41: Nominal $ | H41: =H13 -> 447072181.5 | I41: 497735451.1 | J41: 559288391.9 | K41: 627822597.1 | L41: 684395869 | M41: 745073522.4 | N41: 802681126.8
B42: less assets with a remaining life of nil | C42: Nominal $ | H42: =General!H$81 -> 1167611.44 | I42: =General!I$81 -> 1167611.44 | J42: =General!J$81 -> 1240286.271 | K42: =General!K$81 -> 1267272.676 | L42: =General!L$81 -> 1167611.44 | M42: =General!M$81 -> 1184441.246 | N42: =General!N$81 -> 1328397.748
B43: less Disposals | C43: Nominal $ | H43: =General!H$65 -> 765869.139 | I43: =General!I$65 -> 678520.6526 | J43: =General!J$65 -> 590091.0657 | K43: =General!K$65 -> 499892.887 | L43: =General!L$65 -> 432548.3808 | M43: =General!M$65 -> 441199.3484 | N43: =General!N$65 -> 450023.3354
B44: Adjusted RAB value | C44: Nominal $ | H44: =H41-H42-H43 -> 445138700.9 | I44: =I41-I42-I43 -> 495889319 | J44: 557458014.5 | K44: 626055431.6 | L44: 682795709.2 | M44: 743447881.8 | N44: 800902705.7
B45: multiply by Revaluation rate | C45: % | H45: =General!H$71 -> 0.017 | I45: =General!I$71 -> 0.019 | J45: =General!J$71 -> 0.02 | K45: =General!K$71 -> 0.02 | L45: =General!L$71 -> 0.02 | M45: =General!M$71 -> 0.02 | N45: =General!N$71 -> 0.02
B46: Total Revaluation | C46: Nominal $ | E46: IM 5.3.10 | H46: =H44*H45 -> 7567357.916 | I46: =I44*I45 -> 9421897.061 | J46: 11149160.29 | K46: 12521108.63 | L46: 13655914.18 | M46: 14868957.64 | N46: 16018054.11
B48: Total depreciation
B50: Opening RAB value | C50: Nominal $ | H50: =H13 -> 447072181.5 | I50: 497735451.1 | J50: 559288391.9 | K50: 627822597.1 | L50: 684395869 | M50: 745073522.4 | N50: 802681126.8
B51: multiply by (1 / Remaining asset life) | C51: #.## | H51: =IFERROR(1/General!H$73,0) -> 0.03764758376 | I51: =IFERROR(1/General!I$73,0) -> 0.03774378679 | J51: =IFERROR(1/General!J$73,0) -> 0.03700988583 | K51: =IFERROR(1/General!K$73,0) -> 0.0365840526 | L51: =IFERROR(1/General!L$73,0) -> 0.03613775753 | M51: =IFERROR(1/General!M$73,0) -> 0.03591362947 | N51: =IFERROR(1/General!N$73,0) -> 0.03578706391
B52: Total depreciation | C52: Nominal $ | E52: IM 5.3.7 (2) | H52: =IFERROR(H50*H51,0) -> 16831187.4 | I52: =IFERROR(I50*I51,0) -> 18786420.74 | J52: 20699199.53 | K52: 22968294.92 | L52: 24732531.97 | M52: 26758294.41 | N52: 28725600.79
B54: Total opening RAB value without revaluations
B56: Opening RAB value without revaluations | C56: Nominal $ | H56: =IF(H$5=General!$H$5,General!$H$75,G60) -> 410128234.4 | I56: =IF(I$5=General!$H$5,General!$H$75,H60) -> 454934580 | J56: =IF(J$5=General!$H$5,General!$H$75,I60) -> 509086056.7 | K56: =IF(K$5=General!$H$5,General!$H$75,J60) -> 568875506.1 | L56: =IF(L$5=General!$H$5,General!$H$75,K60) -> 615766364.7 | M56: =IF(M$5=General!$H$5,General!$H$75,L60) -> 666041474.7 | N56: =IF(N$5=General!$H$5,General!$H$75,M60) -> 712566256.1
B57: less Adjusted depreciation | C57: Nominal $ | H57: =H66 -> 15171757.64 | I57: =I66 -> 16829643.41 | J57: 18370021.15 | K57: 20214627.48 | L57: 21511709.62 | M57: 23013359.03 | N57: 24423390.63
B58: less Disposals without revaluations | C58: Nominal $ | H58: =General!H$79 -> 714865 | I58: =General!I$79 -> 614865 | J58: =General!J$79 -> 514865 | K58: =General!K$79 -> 414865 | L58: =General!L$79 -> 400000 | M58: =General!M$79 -> 400000 | N58: =General!N$79 -> 400000
B59: add Total value of commissioned assets | C59: Nominal $ | H59: =H17 -> 60692968.2 | I59: 71595985.12 | J59: 78674335.55 | K59: 67520351.07 | L59: 72186819.59 | M59: 69938140.5 | N59: 65667779.56
B60: Closing RAB value without revaluations | C60: Nominal $ | H60: =H56-H57-H58+H59 -> 454934580 | I60: =I56-I57-I58+I59 -> 509086056.7 | J60: 568875506.1 | K60: 615766364.7 | L60: 666041474.7 | M60: 712566256.1 | N60: 753410645.1
B62: Total adjusted depreciation
B64: Opening RAB value | C64: Nominal $ | H64: =H56 -> 410128234.4 | I64: =I56 -> 454934580 | J64: 509086056.7 | K64: 568875506.1 | L64: 615766364.7 | M64: 666041474.7 | N64: 712566256.1
B65: multiply by (1 / Remaining asset life) | C65: #.## | H65: =1/General!H83 -> 0.03699271682 | I65: =1/General!I83 -> 0.03699354621 | J65: =1/General!J83 -> 0.03608431405 | K65: =1/General!K83 -> 0.03553436078 | L65: =1/General!L83 -> 0.03493485656 | M65: =1/General!M83 -> 0.03455244141 | N65: =1/General!N83 -> 0.0342752557
B66: Total depreciation | C66: Nominal $ | H66: =IFERROR(H64*H65,0) -> 15171757.64 | I66: =IFERROR(I64*I65,0) -> 16829643.41 | J66: 18370021.15 | K66: 20214627.48 | L66: 21511709.62 | M66: 23013359.03 | N66: 24423390.63

Sheet TAXx
B2: =MID(CELL("filename",B2),FIND("]",CELL("filename",B2))+1,255) -> TAXx | C2: =MARx!C2 -> Model: Ok
B3: Period beginning | H3: 2019-04-01 | I3: 2020-04-01 | J3: 2021-04-01 | K3: 2022-04-01 | L3: 2023-04-01 | M3: 2024-04-01 | N3: 2025-04-01
B4: Period ending | H4: 2020-03-31 | I4: 2021-03-31 | J4: 2022-03-31 | K4: 2023-03-31 | L4: 2024-03-31 | M4: 2025-03-31 | N4: 2026-03-31
B5: Regulatory year | H5: ="RY"&RIGHT(YEAR(H4),2) -> RY20 | I5: ="RY"&RIGHT(YEAR(I4),2) -> RY21 | J5: RY22 | K5: RY23 | L5: RY24 | M5: RY25 | N5: RY26
B6: Relevant period | H6: Assessment period | J6: CPP period
B9: Regulatory Tax Module | C9: Units | D9: Value | E9: IM reference
B11: Forecast regulatory tax allowance
B13: Regulatory taxable income | C13: Nominal $ | H13: =H24 -> 24348166.07 | I13: =I24 -> 18029022.41 | J13: 18929825.76 | K13: 20306527.33 | L13: 22165389.51 | M13: 24122340.89 | N13: 25612295.35
B14: less Utilised tax losses | C14: Nominal $ | H14: =H37 -> 0 | I14: =I37 -> 0 | J14: 0 | K14: 0 | L14: 0 | M14: 0 | N14: 0
B15: Regulatory net taxable income | C15: Nominal $ | E15: IM 5.3.13 (2) | H15: =MAX(H13-H14,0) -> 24348166.07 | I15: =MAX(I13-I14,0) -> 18029022.41 | J15: 18929825.76 | K15: 20306527.33 | L15: 22165389.51 | M15: 24122340.89 | N15: 25612295.35
B16: multiply by Corporate tax rate | C16: % | H16: =H78 -> 0.28 | I16: =I78 -> 0.28 | J16: 0.28 | K16: 0.28 | L16: 0.28 | M16: 0.28 | N16: 0.28
B17: Forecast regulatory tax allowance | C17: Nominal $ | E17: IM 5.3.13 (1) | H17: =H15*H16 -> 6817486.499 | I17: =I15*I16 -> 5048126.274 | J17: 5300351.214 | K17: 5685827.654 | L17: 6206309.063 | M17: 6754255.448 | N17: 7171442.697
B19: Regulatory taxable income
B21: Regulatory profit/(loss) before tax | C21: Nominal $ | H21: =H31 -> 31066300.01 | I21: =I31 -> 18428654.31 | J21: 19661856.57 | K21: 21282140.28 | L21: 23060786.02 | M21: 24825933.67 | N21: 26344570.62
B22: add permanent differences | C22: Nominal $ | H22: =H45 -> -1509617.103 | I22: =I45 -> -1178015.14 | J22: -1131285.709 | K22: -1087390.651 | L22: -818646.4558 | M22: -487463.0397 | N22: -459290.0103
B23: add regulatory tax adjustments | C23: Nominal $ | H23: =H67 -> -5208516.838 | I23: =I67 -> 778383.2368 | J23: 399254.9022 | K23: 111777.709 | L23: -76750.05088 | M23: -216129.7455 | N23: -272985.268
B24: Regulatory taxable income | C24: Nominal $ | E24: IM 5.3.13 (3) | H24: =SUM(H21:H23) -> 24348166.07 | I24: =SUM(I21:I23) -> 18029022.41 | J24: 18929825.76 | K24: 20306527.33 | L24: 22165389.51 | M24: 24122340.89 | N24: 25612295.35
B26: Regulatory profit / (loss) before tax
B28: Building blocks allowable revenue before tax | C28: Nominal $ | H28: =BBARx!H37 -> 95136158.51 | I28: =BBARx!I37 -> 85760533.6 | J28: =BBARx!J37 -> 83392481.33 | K28: =BBARx!K37 -> 89533046.64 | L28: =BBARx!L37 -> 90664294.23 | M28: =BBARx!M37 -> 93373146.05 | N28: =BBARx!N37 -> 97022776.09
B29: less Forecast operating expenditure | C29: Nominal $ | H29: =General!H27 -> 47238671.1 | I29: =General!I27 -> 48545458.55 | J29: =General!J27 -> 43031425.23 | K29: =General!K27 -> 45282611.44 | L29: =General!L27 -> 42870976.24 | M29: =General!M27 -> 41788917.97 | N29: =General!N27 -> 41952604.68
B30: less Total depreciation | C30: Nominal $ | H30: =RABx!H14 -> 16831187.4 | I30: =RABx!I14 -> 18786420.74 | J30: =RABx!J14 -> 20699199.53 | K30: =RABx!K14 -> 22968294.92 | L30: =RABx!L14 -> 24732531.97 | M30: =RABx!M14 -> 26758294.41 | N30: =RABx!N14 -> 28725600.79
B31: Regulatory profit/(loss) before tax | C31: Nominal $ | E31: IM 5.3.13 (4) | H31: =H28-H29-H30 -> 31066300.01 | I31: =I28-I29-I30 -> 18428654.31 | J31: 19661856.57 | K31: 21282140.28 | L31: 23060786.02 | M31: 24825933.67 | N31: 26344570.62
B33: Utilised tax losses
B35: Opening tax losses | C35: Nominal $ | E35: IM 5.3.14 (3) | H35: =IF(H5=General!$H$5,General!$H$31,G38) -> 0 | I35: =IF(I5=General!$H$5,General!$H$31,H38) -> 0 | J35: =IF(J5=General!$H$5,General!$H$31,I38) -> 0 | K35: =IF(K5=General!$H$5,General!$H$31,J38) -> 0 | L35: =IF(L5=General!$H$5,General!$H$31,K38) -> 0 | M35: =IF(M5=General!$H$5,General!$H$31,L38) -> 0 | N35: =IF(N5=General!$H$5,General!$H$31,M38) -> 0
B36: add Regulatory taxable income losses | C36: Nominal $ | H36: =-MIN(H24,0) -> 0 | I36: =-MIN(I24,0) -> 0 | J36: 0 | K36: 0 | L36: 0 | M36: 0 | N36: 0
B37: less Utilised tax losses | C37: Nominal $ | E37: IM 5.3.14 (1) | H37: =MIN(H35,MAX(H24,0)) -> 0 | I37: =MIN(I35,MAX(I24,0)) -> 0 | J37: 0 | K37: 0 | L37: 0 | M37: 0 | N37: 0
B38: Closing tax losses | C38: Nominal $ | E38: IM 5.3.14 (5) | H38: =H35+H36-H37 -> 0 | I38: =I35+I36-I37 -> 0 | J38: 0 | K38: 0 | L38: 0 | M38: 0 | N38: 0
B40: Permanent differences
B42: Positive permanent differences | C42: Nominal $ | E42: IM 5.3.15 (2) | H42: =General!H33 -> 15882.00983 | I42: =General!I33 -> 16202.68885 | J42: =General!J33 -> 16515.75395 | K42: =General!K33 -> 16845.09251 | L42: =General!L33 -> 17180.99836 | M42: =General!M33 -> 17524.61833 | N42: =General!N33 -> 17875.1107
B43: less Discretionary discounts and customer rebates | C43: Nominal $ | E43: IM 2.3.3 (6) | H43: =General!H35 -> 0 | I43: =General!I35 -> 0 | J43: =General!J35 -> 0 | K43: =General!K35 -> 0 | L43: =General!L35 -> 0 | M43: =General!M35 -> 0 | N43: =General!N35 -> 0
B44: less Negative permanent differences | C44: Nominal $ | E44: IM 5.3.15 (4) | H44: =General!H37 -> 1525499.113 | I44: =General!I37 -> 1194217.829 | J44: =General!J37 -> 1147801.463 | K44: =General!K37 -> 1104235.743 | L44: =General!L37 -> 835827.4542 | M44: =General!M37 -> 504987.6581 | N44: =General!N37 -> 477165.121
B45: Permanent Differences | C45: Nominal $ | E45: IM 5.3.15 (1) | H45: =H42-H43-H44 -> -1509617.103 | I45: =I42-I43-I44 -> -1178015.14 | J45: -1131285.709 | K45: -1087390.651 | L45: -818646.4558 | M45: -487463.0397 | N45: -459290.0103
B47: Regulatory tax adjustments
B49: Amortisation of initial differences in asset values | C49: Nominal $ | E49: IM 5.3.17 (1) | H49: =H72 -> 4981633.031 | I49: =I72 -> 4972594.443 | J49: 4964949.722 | K49: 4958636.182 | L49: 4953529.013 | M49: 4949161.157 | N49: 4944725.159
B50: add:
B51: Amortisation of revaluations
B52: Total depreciation | C52: Nominal $ | H52: =RABx!H14 -> 16831187.4 | I52: =RABx!I14 -> 18786420.74 | J52: =RABx!J14 -> 20699199.53 | K52: =RABx!K14 -> 22968294.92 | L52: =RABx!L14 -> 24732531.97 | M52: =RABx!M14 -> 26758294.41 | N52: =RABx!N14 -> 28725600.79
B53: less Adjusted Depreciation | C53: Nominal $ | H53: =RABx!H23 -> 15171757.64 | I53: =RABx!I23 -> 16829643.41 | J53: =RABx!J23 -> 18370021.15 | K53: =RABx!K23 -> 20214627.48 | L53: =RABx!L23 -> 21511709.62 | M53: =RABx!M23 -> 23013359.03 | N53: =RABx!N23 -> 24423390.63
B54: Amortisation of revaluations | C54: Nominal $ | E54: IM 5.3.18 | H54: =H52-H53 -> 1659429.765 | I54: =I52-I53 -> 1956777.336 | J54: 2329178.379 | K54: 2753667.443 | L54: 3220822.343 | M54: 3744935.378 | N54: 4302210.154
B55: less:
B56: Notional deductible interest
B57: regulatory investment value | C57: Nominal $ | H57: =BBARx!H49 -> 425435289.4 | I57: =BBARx!I49 -> 473262352.9 | J57: =BBARx!J49 -> 531204307.4 | K57: =BBARx!K49 -> 595123919.8 | L57: =BBARx!L49 -> 646567028.1 | M57: =BBARx!M49 -> 702222501.4 | N57: =BBARx!N49 -> 754802706.9
B58: add RAB proportionate investment | C58: Nominal $ | E58: IM 5.3.16 (3) | H58: =RABx!H37 -> 30045641.45 | I58: =RABx!I37 -> 35555879.45 | J58: =RABx!J37 -> 39149086.96 | K58: =RABx!K37 -> 33602037.94 | L58: =RABx!L37 -> 35975429.13 | M58: =RABx!M37 -> 34843671.87 | N58: =RABx!N37 -> 32698217.5
B59: Asset Base | C59: Nominal $ | H59: =H57+H58 -> 455480930.9 | I59: =I57+I58 -> 508818232.4 | J59: 570353394.4 | K59: 628725957.7 | L59: 682542457.2 | M59: 737066173.3 | N59: 787500924.4
B60: multiply by leverage | C60: % | H60: =General!H$39 -> 0.44 | I60: =General!I$39 -> 0.42 | J60: =General!J$39 -> 0.42 | K60: =General!K$39 -> 0.42 | L60: =General!L$39 -> 0.42 | M60: =General!M$39 -> 0.42 | N60: =General!N$39 -> 0.42
B61: Proportion of Asset base funded by Debt | C61: Nominal $ | H61: =H59*H60 -> 200411609.6 | I61: =I59*I60 -> 213703657.6 | J61: 239548425.6 | K61: 264064902.2 | L61: 286667832 | M61: 309567792.8 | N61: 330750388.3
B62: multiply by cost of debt | C62: % | H62: =General!H41 -> 0.0609 | I62: =General!I41 -> 0.0292 | J62: =General!J41 -> 0.0292 | K62: =General!K41 -> 0.0292 | L62: =General!L41 -> 0.0292 | M62: =General!M41 -> 0.0292 | N62: =General!N41 -> 0.0292
B63: Notional interest | C63: Nominal $ | H63: =H61*H62 -> 12205067.02 | I63: =I61*I62 -> 6240146.802 | J63: 6994814.028 | K63: 7710695.146 | L63: 8370700.695 | M63: 9039379.549 | N63: 9657911.337
B64: add term credit spread differential | C64: Nominal $ | H64: =General!H21 -> 0 | I64: =General!I21 -> 0 | J64: =General!J21 -> 0 | K64: =General!K21 -> 0 | L64: =General!L21 -> 0 | M64: =General!M21 -> 0 | N64: =General!N21 -> 0
B65: Notional deductible interest | C65: Nominal $ | E65: IM 5.3.16 (2) | H65: =(H63+H64)/(SQRT(1+General!H41)) -> 11849579.64 | I65: =(I63+I64)/(SQRT(1+General!I41)) -> 6150988.542 | J65: =(J63+J64)/(SQRT(1+General!J41)) -> 6894873.198 | K65: =(K63+K64)/(SQRT(1+General!K41)) -> 7600525.916 | L65: =(L63+L64)/(SQRT(1+General!L41)) -> 8251101.408 | M65: =(M63+M64)/(SQRT(1+General!M41)) -> 8910226.281 | N65: =(N63+N64)/(SQRT(1+General!N41)) -> 9519920.581
B67: Regulatory tax adjustments | C67: Nominal $ | E67: IM 5.3.16 (1) | H67: =H49+H54-H65 -> -5208516.838 | I67: =I49+I54-I65 -> 778383.2368 | J67: 399254.9022 | K67: 111777.709 | L67: -76750.05088 | M67: -216129.7455 | N67: -272985.268
B69: Amortisation of initial differences in asset values
B71: Opening unamortised initial difference in asset values | C71: Nominal $ | E71: IM 5.3.17 (2) | H71: =IF(G74="",General!$H$43,G74) -> 89221047.59 | I71: =IF(H74="",General!$H$43,H74) -> 84086572.02 | J71: =IF(I74="",General!$H$43,I74) -> 78992350.07 | K71: =IF(J74="",General!$H$43,J74) -> 73933265.47 | L71: =IF(K74="",General!$H$43,K74) -> 68903588.58 | M71: =IF(L74="",General!$H$43,L74) -> 63893670.53 | N71: =IF(M74="",General!$H$43,M74) -> 58891676.65
B72: less Amortisation based on weighted average remaining useful life of relevant assets | C72: Nominal $ | E72: IM 5.3.17 (1) | H72: =H71/General!H47 -> 4981633.031 | I72: =I71/General!I47 -> 4972594.443 | J72: =J71/General!J47 -> 4964949.722 | K72: =K71/General!K47 -> 4958636.182 | L72: =L71/General!L47 -> 4953529.013 | M72: =M71/General!M47 -> 4949161.157 | N72: =N71/General!N47 -> 4944725.159
B73: add Adjustment to opening unamortised initial differences in asset values for sold or acquired assets | C73: Nominal $ | E73: IM 5.3.17 (5) | H73: =General!H45 -> -152842.538 | I73: =General!I45 -> -121627.5098 | J73: =General!J45 -> -94134.87536 | K73: =General!K45 -> -71040.71639 | L73: =General!L45 -> -56389.0307 | M73: =General!M45 -> -52832.72976 | N73: =General!N45 -> -50021.7983
B74: Closing unamortised initial difference in asset values | C74: Nominal $ | E74: IM 5.3.17 (6) | H74: =H71-H72+H73 -> 84086572.02 | I74: =I71-I72+I73 -> 78992350.07 | J74: 73933265.47 | K74: 68903588.58 | L74: 63893670.53 | M74: 58891676.65 | N74: 53896929.69
B76: Corporate tax rate
B78: Corporate Tax Rate | C78: % | E78: IM 1.1.4 (2) | H78: =General!H29 -> 0.28 | I78: =General!I29 -> 0.28 | J78: =General!J29 -> 0.28 | K78: =General!K29 -> 0.28 | L78: =General!L29 -> 0.28 | M78: =General!M29 -> 0.28 | N78: =General!N29 -> 0.28

Sheet DTAXx
B2: =MID(CELL("filename",B2),FIND("]",CELL("filename",B2))+1,255) -> DTAXx | C2: =MARx!C2 -> Model: Ok
B3: Period beginning | H3: 2019-04-01 | I3: 2020-04-01 | J3: 2021-04-01 | K3: 2022-04-01 | L3: 2023-04-01 | M3: 2024-04-01 | N3: 2025-04-01
B4: Period ending | H4: 2020-03-31 | I4: 2021-03-31 | J4: 2022-03-31 | K4: 2023-03-31 | L4: 2024-03-31 | M4: 2025-03-31 | N4: 2026-03-31
B5: Regulatory year | H5: ="RY"&RIGHT(YEAR(H4),2) -> RY20 | I5: ="RY"&RIGHT(YEAR(I4),2) -> RY21 | J5: RY22 | K5: RY23 | L5: RY24 | M5: RY25 | N5: RY26
B6: Relevant period | H6: Assessment period | J6: CPP period
B9: Deferred Tax Module | C9: Units | D9: Value | E9: IM reference
B11: Opening Deferred Tax
B12: Prior year's Closing Deferred Tax | C12: Nominal $ | E12: IM 5.3.19 (1) | H12: =IF(H5=General!$H$5,General!$H$49,G30) -> -20258920.48 | I12: =IF(I5=General!$H$5,General!$H$49,H30) -> -24432334.21 | J12: =IF(J5=General!$H$5,General!$H$49,I30) -> -27950581.24 | K12: =IF(K5=General!$H$5,General!$H$49,J30) -> -32623884.89 | L12: =IF(L5=General!$H$5,General!$H$49,K30) -> -37690244.45 | M12: =IF(M5=General!$H$5,General!$H$49,L30) -> -42812842.17 | N12: =IF(N5=General!$H$5,General!$H$49,M30) -> -47878419.9
B13: Deferred tax related to commissioned assets with no RTAV | C13: Nominal $ | H13: =General!H61 -> -1377971.572 | I13: =General!I61 -> -40763.93112 | J13: =General!J61 -> -133503.2301 | K13: =General!K61 -> -74792.42346 | L13: =General!L61 -> -138596.4659 | M13: =General!M61 -> -38178.83836 | N13: =General!N61 -> 0
B14: Opening Deferred Tax | C14: Nominal $ | H14: =H12+H13 -> -21636892.06 | I14: -24473098.14 | J14: -28084084.47 | K14: -32698677.32 | L14: -37828840.91 | M14: -42851021.01 | N14: -47878419.9
B16: Less:
B17: tax effect of amortisation of initial difference in asset values | C17: Nominal $ | H17: =TAXx!H72*TAXx!H78 -> 1394857.249 | I17: =TAXx!I72*TAXx!I78 -> 1392326.444 | J17: =TAXx!J72*TAXx!J78 -> 1390185.922 | K17: =TAXx!K72*TAXx!K78 -> 1388418.131 | L17: =TAXx!L72*TAXx!L78 -> 1386988.124 | M17: =TAXx!M72*TAXx!M78 -> 1385765.124 | N17: =TAXx!N72*TAXx!N78 -> 1384523.045
B18: Deferred tax balance relating to assets disposed of in the disclosure year in question | C18: Nominal $ | H18: =General!H85 -> -34705.09379 | I18: =General!I85 -> -27617.27323 | J18: =General!J85 -> -21374.67566 | K18: =General!K85 -> -16130.81513 | L18: =General!L85 -> -12803.93943 | M18: =General!M85 -> -11996.43022 | N18: =General!N85 -> -11358.16785
B19: Add:
B20: Tax Effect of Temporary Differences | E20: IM 5.3.20
B21: Adjusted Depreciation | C21: Nominal $ | H21: =RABx!H23*TAXx!H78 -> 4248092.138 | I21: =RABx!I23*TAXx!I78 -> 4712300.155 | J21: =RABx!J23*TAXx!J78 -> 5143605.922 | K21: =RABx!K23*TAXx!K78 -> 5660095.693 | L21: =RABx!L23*TAXx!L78 -> 6023278.695 | M21: =RABx!M23*TAXx!M78 -> 6443740.529 | N21: =RABx!N23*TAXx!N78 -> 6838549.377
B22: less Tax depreciation | C22: Nominal $ | H22: =General!H51*TAXx!H78 -> 7031868.917 | I22: =General!I51*TAXx!I78 -> 8240513.822 | J22: =General!J51*TAXx!J78 -> 9776452.046 | K22: =General!K51*TAXx!K78 -> 10813673.03 | L22: =General!L51*TAXx!L78 -> 11261067.21 | M22: =General!M51*TAXx!M78 -> 11840883.46 | N22: =General!N51*TAXx!N78 -> 12457983.9
B23: Tax effect of Depreciation temporary differences | C23: Nominal $ | H23: =H21-H22 -> -2783776.779 | I23: =I21-I22 -> -3528213.668 | J23: -4632846.124 | K23: -5153577.337 | L23: -5237788.512 | M23: -5397142.932 | N23: -5619434.523
B24: Tax effect of positive temporary differences | C24: Nominal $ | H24: =General!H53*TAXx!H78 -> 1348486.784 | I24: =General!I53*TAXx!I78 -> 1415439.733 | J24: =General!J53*TAXx!J78 -> 1461856.949 | K24: =General!K53*TAXx!K78 -> 1534297.524 | L24: =General!L53*TAXx!L78 -> 1627971.437 | M24: =General!M53*TAXx!M78 -> 1743512.731 | N24: =General!N53*TAXx!N78 -> 1854022.952
B25: less Tax effect of negative temporary differences | C25: Nominal $ | H25: =-General!H55*TAXx!H78 -> 0 | I25: =-General!I55*TAXx!I78 -> 0 | J25: =-General!J55*TAXx!J78 -> 0 | K25: =-General!K55*TAXx!K78 -> 0 | L25: =-General!L55*TAXx!L78 -> 0 | M25: =-General!M55*TAXx!M78 -> 0 | N25: =-General!N55*TAXx!N78 -> 0
B26: tax effect of temporary differences | C26: Nominal $ | H26: =SUM(H23:H25) -> -1435289.994 | I26: =SUM(I23:I25) -> -2112773.935 | J26: -3170989.175 | K26: -3619279.813 | L26: -3609817.075 | M26: -3653630.201 | N26: -3765411.57
B27: deferred tax balance relating to assets acquired in the disclosure year in question | C27: Nominal $ | H27: =General!H57 -> 0 | I27: =General!I57 -> 0 | J27: =General!J57 -> 0 | K27: =General!K57 -> 0 | L27: =General!L57 -> 0 | M27: =General!M57 -> 0 | N27: =General!N57 -> 0
B28: cost allocation adjustment | C28: Nominal $ | H28: =General!H59 -> 0 | I28: =General!I59 -> 0 | J28: =General!J59 -> 0 | K28: =General!K59 -> 0 | L28: =General!L59 -> 0 | M28: =General!M59 -> 0 | N28: =General!N59 -> 0
B30: Closing Deferred Tax | C30: Nominal $ | E30: IM 5.3.19 (2) | H30: =H14-H17-H18+SUM(H26:H28) -> -24432334.21 | I30: =I14-I17-I18+SUM(I26:I28) -> -27950581.24 | J30: -32623884.89 | K30: -37690244.45 | L30: -42812842.17 | M30: -47878419.9 | N30: -53016996.35

Sheet BBARx
B2: =MID(CELL("filename",B2),FIND("]",CELL("filename",B2))+1,255) -> BBARx | C2: =MARx!C2 -> Model: Ok
B3: Period beginning | H3: 2019-04-01 | I3: 2020-04-01 | J3: 2021-04-01 | K3: 2022-04-01 | L3: 2023-04-01 | M3: 2024-04-01 | N3: 2025-04-01
B4: Period ending | H4: 2020-03-31 | I4: 2021-03-31 | J4: 2022-03-31 | K4: 2023-03-31 | L4: 2024-03-31 | M4: 2025-03-31 | N4: 2026-03-31
B5: Regulatory year | H5: ="RY"&RIGHT(YEAR(H4),2) -> RY20 | I5: ="RY"&RIGHT(YEAR(I4),2) -> RY21 | J5: RY22 | K5: RY23 | L5: RY24 | M5: RY25 | N5: RY26
B6: Relevant period | H6: Assessment period | J6: CPP period
B9: Building Blocks Allowable Revenue (BBAR) Module | C9: Units | D9: Value | E9: IM reference
B11: Building Blocks Allowable Revenue Before Tax (BBAR Before Tax)
B13: Calculation A
B14: Regulatory investment value x Cost of capital | C14: Nominal $ | H14: =H49*General!H15 -> 30588797.31 | I14: =I49*General!I15 -> 21628089.53 | J14: =J49*General!J15 -> 24276036.85 | K14: =K49*General!K15 -> 27197163.13 | L14: =L49*General!L15 -> 29548113.18 | M14: =M49*General!M15 -> 32091568.32 | N14: =N49*General!N15 -> 34494483.71
B15: add (Total value of commissioned assets x (TFVCA - 1)) | C15: Nominal $ | H15: =RABx!H17*(RABx!H33-1) -> 2138065.599 | I15: =RABx!I17*(RABx!I33-1) -> 1613210.994 | J15: =RABx!J17*(RABx!J33-1) -> 1772701.401 | K15: =RABx!K17*(RABx!K33-1) -> 1521378.224 | L15: =RABx!L17*(RABx!L33-1) -> 1626523.761 | M15: =RABx!M17*(RABx!M33-1) -> 1575856.202 | N15: =RABx!N17*(RABx!N33-1) -> 1479635.817
B16: add (Term credit spread differential allowance x TF) | C16: Nominal $ | H16: =General!H21*General!H23 -> 0 | I16: =General!I21*General!I23 -> 0 | J16: =General!J21*General!J23 -> 0 | K16: =General!K21*General!K23 -> 0 | L16: =General!L21*General!L23 -> 0 | M16: =General!M21*General!M23 -> 0 | N16: =General!N21*General!N23 -> 0
B17: less Total revaluation | C17: Nominal $ | H17: =RABx!H16 -> 7567357.916 | I17: =RABx!I16 -> 9421897.061 | J17: =RABx!J16 -> 11149160.29 | K17: =RABx!K16 -> 12521108.63 | L17: =RABx!L16 -> 13655914.18 | M17: =RABx!M16 -> 14868957.64 | N17: =RABx!N16 -> 16018054.11
C18: Nominal $ | H18: =H14+H15+H16-H17 -> 25159504.99 | I18: =I14+I15+I16-I17 -> 13819403.46 | J18: 14899577.96 | K18: 16197432.73 | L18: 17518722.76 | M18: 18798466.88 | N18: 19956065.41
B19: divide by TFrev - Corporate tax rate x TF | C19: #.## | H19: =General!H25-TAXx!H78*General!H23 -> 0.7386899018 | I19: =General!I25-TAXx!I78*General!I23 -> 0.7319756181 | J19: =General!J25-TAXx!J78*General!J23 -> 0.7319756181 | K19: =General!K25-TAXx!K78*General!K23 -> 0.7319756181 | L19: =General!L25-TAXx!L78*General!L23 -> 0.7319756181 | M19: =General!M25-TAXx!M78*General!M23 -> 0.7319756181 | N19: =General!N25-TAXx!N78*General!N23 -> 0.7319756181
B20: Subtotal A | C20: Nominal $ | H20: =H18/H19 -> 34059630.34 | I20: 18879595.33 | J20: 20355292.7 | K20: 22128377.41 | L20: 23933478.56 | M20: 25681821.11 | N20: 27263292.54
B22: Calculation B
B23: add Total depreciation x (1 - Corporate tax rate x TF) | C23: Nominal $ | H23: =RABx!H14*(1-TAXx!H78*General!H23) -> 11952436.83 | I23: =RABx!I14*(1-TAXx!I78*General!I23) -> 13407699.41 | J23: =RABx!J14*(1-TAXx!J78*General!J23) -> 14772832.41 | K23: =RABx!K14*(1-TAXx!K78*General!K23) -> 16392265.37 | L23: =RABx!L14*(1-TAXx!L78*General!L23) -> 17651385.47 | M23: =RABx!M14*(1-TAXx!M78*General!M23) -> 19097153.89 | N23: =RABx!N14*(1-TAXx!N78*General!N23) -> 20501202.75
B24: add Forecast operating expenditure x TF x (1 - Corporate tax rate) | C24: Nominal $ | H24: =General!H27*General!H23*(1-TAXx!H78) -> 35209997.67 | I24: =General!I27*General!I23*(1-TAXx!I78) -> 35740290.08 | J24: =General!J27*General!J23*(1-TAXx!J78) -> 31680731.14 | K24: =General!K27*General!K23*(1-TAXx!K78) -> 33338106.53 | L24: =General!L27*General!L23*(1-TAXx!L78) -> 31562604.88 | M24: =General!M27*General!M23*(1-TAXx!M78) -> 30765968.54 | N24: =General!N27*General!N23*(1-TAXx!N78) -> 30886478.48
B25: add (Closing deferred tax - Opening deferred tax) x (TF - 1) | C25: Nominal $ | H25: =(DTAXx!H30-DTAXx!H14)*(General!H23-1) -> -98476.62538 | I25: =(DTAXx!I30-DTAXx!I14)*(General!I23-1) -> -78355.14756 | J25: =(DTAXx!J30-DTAXx!J14)*(General!J23-1) -> -102291.4335 | K25: =(DTAXx!K30-DTAXx!K14)*(General!K23-1) -> -112470.7057 | L25: =(DTAXx!L30-DTAXx!L14)*(General!L23-1) -> -112300.2305 | M25: =(DTAXx!M30-DTAXx!M14)*(General!M23-1) -> -113278.0722 | N25: =(DTAXx!N30-DTAXx!N14)*(General!N23-1) -> -115783.1407
B26: Add
B27: Permanent differences | C27: Nominal $ | H27: =TAXx!H45 -> -1509617.103 | I27: =TAXx!I45 -> -1178015.14 | J27: =TAXx!J45 -> -1131285.709 | K27: =TAXx!K45 -> -1087390.651 | L27: =TAXx!L45 -> -818646.4558 | M27: =TAXx!M45 -> -487463.0397 | N27: =TAXx!N45 -> -459290.0103
B28: add Regulatory tax adjustments | C28: Nominal $ | H28: =TAXx!H67 -> -5208516.838 | I28: =TAXx!I67 -> 778383.2368 | J28: =TAXx!J67 -> 399254.9022 | K28: =TAXx!K67 -> 111777.709 | L28: =TAXx!L67 -> -76750.05088 | M28: =TAXx!M67 -> -216129.7455 | N28: =TAXx!N67 -> -272985.268
B29: less Utilised tax losses | C29: Nominal $ | H29: =TAXx!H35 -> 0 | I29: =TAXx!I35 -> 0 | J29: =TAXx!J35 -> 0 | K29: =TAXx!K35 -> 0 | L29: =TAXx!L35 -> 0 | M29: =TAXx!M35 -> 0 | N29: =TAXx!N35 -> 0
C30: Nominal $ | H30: =H27+H28-H29 -> -6718133.941 | I30: =I27+I28-I29 -> -399631.9034 | J30: -732030.8066 | K30: -975612.9419 | L30: -895396.5067 | M30: -703592.7853 | N30: -732275.2783
B31: multiply by (Corporate tax rate x TF) | C31: #.## | H31: =TAXx!H78*General!H23 -> 0.2898637187 | I31: =TAXx!I78*General!I23 -> 0.2863090001 | J31: =TAXx!J78*General!J23 -> 0.2863090001 | K31: =TAXx!K78*General!K23 -> 0.2863090001 | L31: =TAXx!L78*General!L23 -> 0.2863090001 | M31: =TAXx!M78*General!M23 -> 0.2863090001 | N31: =TAXx!N78*General!N23 -> 0.2863090001
C32: Nominal $ | H32: =H30*H31 -> -1947343.287 | I32: =I30*I31 -> -114418.2107 | J32: -209587.0083 | K32: -279326.7659 | L32: -256360.0785 | M32: -201444.9468 | N32: -209657.0027
B33: Subtotal | C33: Nominal $ | H33: =H32+H23+H24+H25 -> 45116614.59 | I33: =I32+I23+I24+I25 -> 48955216.13 | J33: 46141685.11 | K33: 49338574.42 | L33: 48845330.04 | M33: 49548399.41 | N33: 51062241.09
B34: divide by (TFrev - Corporate tax rate x TF) | C34: #.## | H34: =General!H25-TAXx!H78*General!H23 -> 0.7386899018 | I34: =General!I25-TAXx!I78*General!I23 -> 0.7319756181 | J34: =General!J25-TAXx!J78*General!J23 -> 0.7319756181 | K34: =General!K25-TAXx!K78*General!K23 -> 0.7319756181 | L34: =General!L25-TAXx!L78*General!L23 -> 0.7319756181 | M34: =General!M25-TAXx!M78*General!M23 -> 0.7319756181 | N34: =General!N25-TAXx!N78*General!N23 -> 0.7319756181
B35: Subtotal B | C35: Nominal $ | H35: =H33/H34 -> 61076528.17 | I35: 66880938.27 | J35: 63037188.63 | K35: 67404669.23 | L35: 66730815.67 | M35: 67691324.94 | N35: 69759483.55
B37: BBAR before tax (A+B) | C37: Nominal $ | E37: IM 5.3.2 (1) | H37: =H35+H20 -> 95136158.51 | I37: 85760533.6 | J37: 83392481.33 | K37: 89533046.64 | L37: 90664294.23 | M37: 93373146.05 | N37: 97022776.09
B39: Building Blocks Allowable Revenue After Tax (BBAR After Tax)
B41: BBAR before tax | C41: Nominal $ | H41: =H37 -> 95136158.51 | I41: 85760533.6 | J41: 83392481.33 | K41: 89533046.64 | L41: 90664294.23 | M41: 93373146.05 | N41: 97022776.09
B42: less Forecast regulatory tax allowance | C42: Nominal $ | H42: =TAXx!H17 -> 6817486.499 | I42: =TAXx!I17 -> 5048126.274 | J42: =TAXx!J17 -> 5300351.214 | K42: =TAXx!K17 -> 5685827.654 | L42: =TAXx!L17 -> 6206309.063 | M42: =TAXx!M17 -> 6754255.448 | N42: =TAXx!N17 -> 7171442.697
B43: BBAR after tax | C43: Nominal $ | E43: IM 5.3.3 (1) | H43: =H41-H42 -> 88318672.01 | I43: =I41-I42 -> 80712407.33 | J43: 78092130.12 | K43: 83847218.98 | L43: 84457985.16 | M43: 86618890.6 | N43: 89851333.4
B45: Regulatory Investment Value
B47: Total opening RAB value | C47: Nominal $ | H47: =RABx!H13 -> 447072181.5 | I47: =RABx!I13 -> 497735451.1 | J47: =RABx!J13 -> 559288391.9 | K47: =RABx!K13 -> 627822597.1 | L47: =RABx!L13 -> 684395869 | M47: =RABx!M13 -> 745073522.4 | N47: =RABx!N13 -> 802681126.8
B48: add Opening deferred tax | C48: Nominal $ | H48: =DTAXx!H14 -> -21636892.06 | I48: =DTAXx!I14 -> -24473098.14 | J48: =DTAXx!J14 -> -28084084.47 | K48: =DTAXx!K14 -> -32698677.32 | L48: =DTAXx!L14 -> -37828840.91 | M48: =DTAXx!M14 -> -42851021.01 | N48: =DTAXx!N14 -> -47878419.9
B49: Regulatory investment value | C49: Nominal $ | E49: IM 5.3.2 (2) | H49: =H47+H48 -> 425435289.4 | I49: =I47+I48 -> 473262352.9 | J49: 531204307.4 | K49: 595123919.8 | L49: 646567028.1 | M49: 702222501.4 | N49: 754802706.9

Sheet MARx
B2: =MID(CELL("filename",B2),FIND("]",CELL("filename",B2))+1,255) -> MARx | C2: =IF(Goal_seek_output=0,"Model: Ok","Run goal seek on MARx sheet") -> Model: Ok
B3: Period beginning | H3: 2019-04-01 | I3: 2020-04-01 | J3: 2021-04-01 | K3: 2022-04-01 | L3: 2023-04-01 | M3: 2024-04-01 | N3: 2025-04-01
B4: Period ending | H4: 2020-03-31 | I4: 2021-03-31 | J4: 2022-03-31 | K4: 2023-03-31 | L4: 2024-03-31 | M4: 2025-03-31 | N4: 2026-03-31
B5: Regulatory year | H5: ="RY"&RIGHT(YEAR(H4),2) -> RY20 | I5: ="RY"&RIGHT(YEAR(I4),2) -> RY21 | J5: RY22 | K5: RY23 | L5: RY24 | M5: RY25 | N5: RY26
B6: Relevant period | H6: Assessment period | J6: CPP period
B9: Maximum Allowable Revenue (MAR) Module | C9: Units | D9: Value | E9: IM reference
B15: Maximum Allowable Revenue Before Tax (MAR Before Tax)
B17: Prior year's MAR | C17: Nominal $ | K17: =J20*K41 -> 96019532.03 | L17: =K20*L41 -> 93065554.12 | M17: =L20*M41 -> 90180521.94 | N17: =M20*N41 -> 87384925.76
B18: multiply by (1 + ΔCPI) | C18: #.## | K18: =(1+General!K17)*K41 -> 1.020248059 | L18: =(1+General!L17)*L41 -> 1.02 | M18: =(1+General!M17)*M41 -> 1.02 | N18: =(1+General!N17)*N41 -> 1.02
B19: multiply by (1 - X)) | C19: #.## | K19: =1-General!$D$13 -> 0.95 | L19: =1-General!$D$13 -> 0.95 | M19: =1-General!$D$13 -> 0.95 | N19: =1-General!$D$13 -> 0.95
B20: MAR before tax | C20: Nominal $ | E20: IM 5.3.4 (5) & (6) | J20: 96019532.03 | K20: =K17*K18*K19 -> 93065554.12 | L20: =L17*L18*L19 -> 90180521.94 | M20: =M17*M18*M19 -> 87384925.76 | N20: =N17*N18*N19 -> 84675993.06
B22: Maximum Allowable Revenue After Tax (MAR After Tax)
B24: MAR before tax | C24: Nominal $ | J24: =J20 -> 96019532.03 | K24: =K20 -> 93065554.12 | L24: =L20 -> 90180521.94 | M24: =M20 -> 87384925.76 | N24: =N20 -> 84675993.06
B25: less Forecast regulatory tax allowance | C25: Nominal $ | J25: =TAXx!J17 -> 5300351.214 | K25: =TAXx!K17 -> 5685827.654 | L25: =TAXx!L17 -> 6206309.063 | M25: =TAXx!M17*M41 -> 6754255.448 | N25: =TAXx!N17*N41 -> 7171442.697
B26: MAR after tax (year end) | C26: Nominal $ | E26: IM 5.3.4 (7) | J26: =(J24-J25)*J34 -> 92377946.4 | K26: =(K24-K25)*K34 -> 88977431.4 | L26: =(L24-L25)*L34 -> 85509649.3 | M26: =(M24-M25)*M34 -> 82104971.33 | N26: =(N24-N25)*N34 -> 78921691.48
B28: Claw-back
B30: Claw-back | C30: Nominal $ | D30: =General!$D$19 -> 0 | E30: IM 5.3.4 (2)
B32: TFrev
B34: TFrev | C34: #.## | J34: =General!J25 -> 1.018284618 | K34: =General!K25 -> 1.018284618 | L34: =General!L25 -> 1.018284618 | M34: =General!M25 -> 1.018284618 | N34: =General!N25 -> 1.018284618
B36: Validation
B38: Check that NPV of BBAR after tax agrees to NPV of MAR after tax
B40: CPP year | C40: #.## | J40: =IF(MAX($I40:I40)>=General!$D11,0,I40+1) -> 1 | K40: =IF(MAX($I40:J40)>=General!$D11,0,J40+1) -> 2 | L40: =IF(MAX($I40:K40)>=General!$D11,0,K40+1) -> 3 | M40: =IF(MAX($I40:L40)>=General!$D11,0,L40+1) -> 4 | N40: =IF(MAX($I40:M40)>=General!$D11,0,M40+1) -> 5
B41: CPP period flag | C41: #.## | J41: =(J40>0)*1 -> 1 | K41: =(K40>0)*1 -> 1 | L41: =(L40>0)*1 -> 1 | M41: =(M40>0)*1 -> 1 | N41: =(N40>0)*1 -> 1
B43: MAR after tax (year end) | C43: Nominal $ | J43: =J26*J41 -> 92377946.4 | K43: =K26*K41 -> 88977431.4 | L43: =L26*L41 -> 85509649.3 | M43: =M26*M41 -> 82104971.33 | N43: =N26*N41 -> 78921691.48
B44: Number of years used to discount to present value | C44: #.## | J44: =(I44+1)*J41 -> 1 | K44: =(J44+1)*K41 -> 2 | L44: =(K44+1)*L41 -> 3 | M44: =(L44+1)*M41 -> 4 | N44: =(M44+1)*N41 -> 5
B45: Present Value of MAR after tax using WACC | C45: Nominal $ | J45: =J43/(1+General!J15)^J44 -> 88340773.07 | K45: =K43/(1+General!K15)^K44 -> 81370249.63 | L45: =L43/(1+General!L15)^L44 -> 74781436.12 | M45: =M43/(1+General!M15)^M44 -> 68665884.98 | N45: =N43/(1+General!N15)^N44 -> 63119106.8
B46: ="NPV of MAR after tax (A) ["&General!$D$11&" year regulatory period]" -> NPV of MAR after tax (A) [5 year regulatory period] | C46: Nominal $ | J46: =SUM(J45:N45) -> 376277450.6
B48: BBAR after tax (year end) | C48: Nominal $ | J48: =BBARx!J43*J$34*J41 -> 79520014.9 | K48: =BBARx!K43*K$34*K41 -> 85380333.37 | L48: =BBARx!L43*L$34*L41 -> 86002267.17 | M48: =BBARx!M43*M$34*M41 -> 88202683.94 | N48: =BBARx!N43*N$34*N41 -> 91494230.72
B49: Number of years used to discount to present value | C49: #.## | J49: =J44 -> 1 | K49: =K44 -> 2 | L49: =L44 -> 3 | M49: =M44 -> 4 | N49: =N44 -> 5
B50: Present Value of BBAR after tax using WACC | C50: Nominal $ | J50: =J48/(1+General!J15)^J49 -> 76044768.96 | K50: =K48/(1+General!K15)^K49 -> 78080687.77 | L50: =L48/(1+General!L15)^L49 -> 75212249.17 | M50: =M48/(1+General!M15)^M49 -> 73765513.25 | N50: =N48/(1+General!N15)^N49 -> 73174231.47
B51: ="NPV of BBAR after tax ["&General!$D$11&" year regulatory period]" -> NPV of BBAR after tax [5 year regulatory period] | C51: Nominal $ | J51: =SUM(J50:N50) -> 376277450.6
B52: less/(add) Claw-back | C52: Nominal $ | E52: IM 5.3.4 (2) | J52: =$D$30 -> 0
B53: ="NPV of BBAR after tax including Clawback (B) ["&General!$D$11&" year regulatory period]" -> NPV of BBAR after tax including Clawback (B) [5 year regulatory period] | C53: Nominal $ | J53: =J51-J52 -> 376277450.6
B55: A-B (difference should be nil) | C55: Nominal $ | E55: IM 5.3.4 (1) | J55: =J53-J46 -> 0

Sheet Outputs >
B2: This sheet has been deliberately left blank.

Sheet General
B2: =MID(CELL("filename",B2),FIND("]",CELL("filename",B2))+1,255) -> General | C2: =MARx!C2 -> Model: Ok
B3: Period beginning | H3: 2019-04-01 | I3: 2020-04-01 | J3: 2021-04-01 | K3: 2022-04-01 | L3: 2023-04-01 | M3: 2024-04-01 | N3: 2025-04-01
B4: Period ending | H4: 2020-03-31 | I4: 2021-03-31 | J4: 2022-03-31 | K4: 2023-03-31 | L4: 2024-03-31 | M4: 2025-03-31 | N4: 2026-03-31
B5: Regulatory year | H5: ="RY"&RIGHT(YEAR(H4),2) -> RY20 | I5: ="RY"&RIGHT(YEAR(I4),2) -> RY21 | J5: RY22 | K5: RY23 | L5: RY24 | M5: RY25 | N5: RY26
B6: Relevant period | H6: Assessment period | J6: CPP period
B9: CPP Outputs Module | C9: Units | D9: Value | E9: IM reference
B11: CPP period flag | C11: #.## | J11: =MARx!J41 -> 1 | K11: =MARx!K41 -> 1 | L11: =MARx!L41 -> 1 | M11: =MARx!M41 -> 1 | N11: =MARx!N41 -> 1
B13: CPP regulatory period | C13: Year | J13: =General!J5 -> RY22 | K13: =General!K5 -> RY23 | L13: =General!L5 -> RY24 | M13: =General!M5 -> RY25 | N13: =General!N5 -> RY26
B15: Building Blocks Allowable Revenue Before Tax | C15: Nominal $ | H15: =BBARx!H37 -> 95136158.51 | I15: =BBARx!I37 -> 85760533.6 | J15: =BBARx!J37 -> 83392481.33 | K15: =BBARx!K37 -> 89533046.64 | L15: =BBARx!L37 -> 90664294.23 | M15: =BBARx!M37 -> 93373146.05 | N15: =BBARx!N37 -> 97022776.09
B17: Building Blocks Allowable Revenue After Tax | C17: Nominal $ | H17: =BBARx!H43 -> 88318672.01 | I17: =BBARx!I43 -> 80712407.33 | J17: =BBARx!J43 -> 78092130.12 | K17: =BBARx!K43 -> 83847218.98 | L17: =BBARx!L43 -> 84457985.16 | M17: =BBARx!M43 -> 86618890.6 | N17: =BBARx!N43 -> 89851333.4
B19: Maximum Allowable Revenue Before Tax | C19: Nominal $ | J19: =MARx!J20*J11 -> 96019532.03 | K19: =MARx!K20*K11 -> 93065554.12 | L19: =MARx!L20*L11 -> 90180521.94 | M19: =MARx!M20*M11 -> 87384925.76 | N19: =MARx!N20*N11 -> 84675993.06
B21: Maximum Allowable Revenue After Tax | C21: Nominal $ | J21: =(MARx!J24-MARx!J25)*J11 -> 90719180.82 | K21: =(MARx!K24-MARx!K25)*K11 -> 87379726.47 | L21: =(MARx!L24-MARx!L25)*L11 -> 83974212.88 | M21: =(MARx!M24-MARx!M25)*M11 -> 80630670.32 | N21: =(MARx!N24-MARx!N25)*N11 -> 77504550.37
